[Event "*** SCC Grand Prix: Titled Tuesday Blitz"]
[Site "Chess.com"]
[Date "2020.10.06"]
[Round "7"]
[White "Leonid_Starozhilov"]
[Black "Infernal_XaM"]
[Result "0-1"]
[WhiteElo "2695"]
[BlackElo "2878"]
[TimeControl "180+1"]
[EndTime "11:20:16 PDT"]
[Termination "Infernal_XaM won by resignation"]

1. e4 {[%clk 0:03:00.9]} 1... e5 {[%clk 0:02:59.7]} 2. Nf3 {[%clk 0:03:01]} 2...
Nc6 {[%clk 0:03:00.3]} 3. Bc4 {[%clk 0:03:01.4]} 3... Nf6 {[%clk 0:03:00.3]} 4.
d3 {[%clk 0:03:01.8]} 4... h6 {[%clk 0:03:00.2]} 5. Nc3 {[%clk 0:03:02.1]} 5...
d6 {[%clk 0:02:57.3]} 6. h3 {[%clk 0:03:02]} 6... g6 {[%clk 0:02:54.9]} 7. Nd5
{[%clk 0:02:48.5]} 7... Bg7 {[%clk 0:02:51]} 8. a3 {[%clk 0:02:47.6]} 8... Nxd5
{[%clk 0:02:47.6]} 9. Bxd5 {[%clk 0:02:47.6]} 9... Ne7 {[%clk 0:02:46.4]} 10.
Bb3 {[%clk 0:02:45.9]} 10... O-O {[%clk 0:02:46.3]} 11. Be3 {[%clk 0:02:34.3]}
11... d5 {[%clk 0:02:44.6]} 12. Bc5 {[%clk 0:02:32.6]} 12... c6 {[%clk
0:02:33.1]} 13. O-O {[%clk 0:02:29.4]} 13... Re8 {[%clk 0:02:21.1]} 14. Re1
{[%clk 0:02:20.1]} 14... b6 {[%clk 0:02:20.3]} 15. Bxe7 {[%clk 0:01:44.9]} 15...
Rxe7 {[%clk 0:02:20.2]} 16. d4 {[%clk 0:01:42.7]} 16... exd4 {[%clk 0:02:07.5]}
17. Nxd4 {[%clk 0:01:43]} 17... Bb7 {[%clk 0:01:53.5]} 18. c3 {[%clk 0:00:57.7]}
18... c5 {[%clk 0:01:47.8]} 19. Nc2 {[%clk 0:00:53.6]} 19... dxe4 {[%clk
0:01:47.3]} 20. Qg4 {[%clk 0:00:42.2]} 20... Kh7 {[%clk 0:01:45.7]} 21. Rad1
{[%clk 0:00:40.4]} 21... Qe8 {[%clk 0:01:45.1]} 22. Bd5 {[%clk 0:00:25.8]} 22...
f5 {[%clk 0:01:44.2]} 23. Qe2 {[%clk 0:00:26]} 23... Bxd5 {[%clk 0:01:43.3]} 24.
Rxd5 {[%clk 0:00:26.9]} 24... Rd8 {[%clk 0:01:43.2]} 25. Red1 {[%clk 0:00:26.6]}
25... Red7 {[%clk 0:01:36.7]} 26. Rxd7 {[%clk 0:00:18.3]} 26... Rxd7 {[%clk
0:01:37.1]} 27. g3 {[%clk 0:00:17.7]} 27... h5 {[%clk 0:01:31.3]} 28. Rxd7
{[%clk 0:00:13.9]} 28... Qxd7 {[%clk 0:01:31.5]} 29. Ne3 {[%clk 0:00:13.7]}
29... b5 {[%clk 0:01:29.7]} 30. h4 {[%clk 0:00:13.1]} 30... c4 {[%clk
0:01:29.5]} 31. Ng2 {[%clk 0:00:06.6]} 31... Qd3 {[%clk 0:01:29.4]} 32. Qe1
{[%clk 0:00:03]} 32... Bh6 {[%clk 0:01:29.4]} 33. Nf4 {[%clk 0:00:02.7]} 33...
Bxf4 {[%clk 0:01:28.9]} 34. gxf4 {[%clk 0:00:03.6]} 34... Kg7 {[%clk 0:01:25.6]}
35. Qe3 {[%clk 0:00:03.8]} 35... Qd1+ {[%clk 0:01:19.9]} 36. Kh2 {[%clk
0:00:04.1]} 36... Qd7 {[%clk 0:01:15.4]} 37. Qc5 {[%clk 0:00:04.2]} 37... Kf7
{[%clk 0:01:15.6]} 38. Kg3 {[%clk 0:00:04.3]} 38... a6 {[%clk 0:01:13.9]} 39.
Qe5 {[%clk 0:00:04.4]} 39... Qd3+ {[%clk 0:01:07.9]} 40. Kh2 {[%clk 0:00:04.4]}
40... Qd2 {[%clk 0:00:56.5]} 41. Qc7+ {[%clk 0:00:04]} 41... Ke6 {[%clk
0:00:54.9]} 42. Qe5+ {[%clk 0:00:04.4]} 42... Kd7 {[%clk 0:00:54.6]} 43. Kg3
{[%clk 0:00:04.7]} 43... Qd6 {[%clk 0:00:53.1]} 44. Qg7+ {[%clk 0:00:04.2]}
44... Kc6 {[%clk 0:00:53.3]} 45. Qg8 {[%clk 0:00:03.9]} 45... Kb6 {[%clk
0:00:52.8]} 46. Qe8 {[%clk 0:00:03.3]} 46... Ka5 {[%clk 0:00:52.7]} 47. Qf7
{[%clk 0:00:02.1]} 47... Ka4 {[%clk 0:00:52.8]} 48. Qa7 {[%clk 0:00:02.1]} 48...
Kb3 {[%clk 0:00:51.9]} 49. Qd4 {[%clk 0:00:02.6]} 49... Qxd4 {[%clk 0:00:44.6]}
50. cxd4 {[%clk 0:00:02.9]} 50... Kxb2 {[%clk 0:00:45.2]} 51. d5 {[%clk
0:00:03]} 51... c3 {[%clk 0:00:45.8]} 52. d6 {[%clk 0:00:03.9]} 52... c2 {[%clk
0:00:46.2]} 53. d7 {[%clk 0:00:04.8]} 53... c1=Q {[%clk 0:00:46.7]} 54. d8=Q
{[%clk 0:00:05.7]} 54... Qc3+ {[%clk 0:00:46.6]} 55. Kg2 {[%clk 0:00:05.9]}
55... Qf3+ {[%clk 0:00:45.1]} 56. Kg1 {[%clk 0:00:06.3]} 56... Qg4+ {[%clk
0:00:45]} 57. Kf1 {[%clk 0:00:06.2]} 57... Qh3+ {[%clk 0:00:44.9]} 58. Kg1
{[%clk 0:00:06.1]} 58... Qxa3 {[%clk 0:00:44]} 59. Qf6+ {[%clk 0:00:05.3]} 59...
Kb1 {[%clk 0:00:43.9]} 60. Qxg6 {[%clk 0:00:05.5]} 60... Qc1+ {[%clk 0:00:43.2]}
61. Kg2 {[%clk 0:00:06]} 61... Qxf4 {[%clk 0:00:41.3]} 62. Qxa6 {[%clk
0:00:05.9]} 62... Qf3+ {[%clk 0:00:40.8]} 63. Kg1 {[%clk 0:00:05.6]} 63... Qg4+
{[%clk 0:00:40.6]} 64. Kf1 {[%clk 0:00:05.1]} 64... Qh3+ {[%clk 0:00:40]} 65.
Kg1 {[%clk 0:00:05]} 65... Qd3 {[%clk 0:00:40.3]} 66. Qf6 {[%clk 0:00:04.2]}
66... e3 {[%clk 0:00:39.4]} 67. fxe3 {[%clk 0:00:03.9]} 67... b4 {[%clk
0:00:39.8]} 0-1

[Event "*** SCC Grand Prix: Titled Tuesday Blitz"]
[Site "Chess.com"]
[Date "2020.10.06"]
[Round "7"]
[White "ChessAurochs"]
[Black "Sergienko_Sergey"]
[Result "0-1"]
[WhiteElo "2547"]
[BlackElo "2385"]
[TimeControl "180+1"]
[EndTime "11:20:17 PDT"]
[Termination "Sergienko_Sergey won on time"]

1. e4 {[%clk 0:03:00.9]} 1... c5 {[%clk 0:02:59.2]} 2. Nf3 {[%clk 0:03:01.3]}
2... a6 {[%clk 0:02:58.5]} 3. c3 {[%clk 0:02:59.3]} 3... e6 {[%clk 0:02:57.8]}
4. d4 {[%clk 0:02:59.2]} 4... d5 {[%clk 0:02:58.3]} 5. e5 {[%clk 0:02:58.7]}
5... Bd7 {[%clk 0:02:57.6]} 6. a4 {[%clk 0:02:50.1]} 6... Nc6 {[%clk 0:02:51.2]}
7. Be2 {[%clk 0:02:44.7]} 7... cxd4 {[%clk 0:02:45.8]} 8. cxd4 {[%clk
0:02:44.2]} 8... Nge7 {[%clk 0:02:44.8]} 9. O-O {[%clk 0:02:43.9]} 9... Nf5
{[%clk 0:02:44]} 10. Be3 {[%clk 0:02:31.7]} 10... Be7 {[%clk 0:02:42.8]} 11. Qd2
{[%clk 0:02:30.6]} 11... O-O {[%clk 0:02:41.6]} 12. Nc3 {[%clk 0:02:30.6]} 12...
Rc8 {[%clk 0:02:38.9]} 13. Bd3 {[%clk 0:02:22.8]} 13... Nxe3 {[%clk 0:02:32]}
14. fxe3 {[%clk 0:02:23.7]} 14... Na5 {[%clk 0:02:30.6]} 15. Qf2 {[%clk
0:02:18]} 15... Nc4 {[%clk 0:02:22.6]} 16. Bxc4 {[%clk 0:02:01.5]} 16... Rxc4
{[%clk 0:02:18.4]} 17. Nd2 {[%clk 0:01:49.9]} 17... Rc8 {[%clk 0:02:15]} 18. a5
{[%clk 0:01:40.9]} 18... Bb4 {[%clk 0:01:59.8]} 19. Nb3 {[%clk 0:01:37.6]} 19...
Qe7 {[%clk 0:01:45.7]} 20. Rac1 {[%clk 0:01:29.3]} 20... Rc4 {[%clk 0:01:24.2]}
21. e4 {[%clk 0:01:21.4]} 21... Bxc3 {[%clk 0:01:16.9]} 22. Rxc3 {[%clk
0:01:17.5]} 22... Rxc3 {[%clk 0:01:16.2]} 23. bxc3 {[%clk 0:01:18.4]} 23... dxe4
{[%clk 0:01:15.5]} 24. Nc5 {[%clk 0:01:18.6]} 24... Bc6 {[%clk 0:01:15.2]} 25.
Qg3 {[%clk 0:01:14.3]} 25... Kh8 {[%clk 0:01:05]} 26. h4 {[%clk 0:01:14]} 26...
f5 {[%clk 0:01:00.4]} 27. exf6 {[%clk 0:01:10.7]} 27... gxf6 {[%clk 0:00:59]}
28. Rf4 {[%clk 0:01:07.3]} 28... Rg8 {[%clk 0:00:54.9]} 29. Rg4 {[%clk
0:01:07.4]} 29... Rxg4 {[%clk 0:00:50.9]} 30. Qxg4 {[%clk 0:01:08.3]} 30... f5
{[%clk 0:00:48]} 31. Qf4 {[%clk 0:01:07.5]} 31... Qf6 {[%clk 0:00:33.5]} 32. g3
{[%clk 0:01:01.8]} 32... Kg7 {[%clk 0:00:30.2]} 33. Kf2 {[%clk 0:01:01.9]} 33...
Qg6 {[%clk 0:00:22.3]} 34. Ke3 {[%clk 0:00:48.8]} 34... h6 {[%clk 0:00:20.4]}
35. Kf2 {[%clk 0:00:42.5]} 35... Kf7 {[%clk 0:00:19.5]} 36. Qc7+ {[%clk
0:00:42.1]} 36... Kg8 {[%clk 0:00:18.9]} 37. Qd8+ {[%clk 0:00:31.3]} 37... Kh7
{[%clk 0:00:17.7]} 38. Qe7+ {[%clk 0:00:30.2]} 38... Kg8 {[%clk 0:00:17.3]} 39.
Nxe6 {[%clk 0:00:28.6]} 39... e3+ {[%clk 0:00:16.4]} 40. Kxe3 {[%clk 0:00:21.9]}
40... Qxg3+ {[%clk 0:00:16.1]} 41. Kd2 {[%clk 0:00:21.9]} 41... Qf2+ {[%clk
0:00:14.8]} 42. Kd3 {[%clk 0:00:21.3]} 42... Qf1+ {[%clk 0:00:10.9]} 43. Kc2
{[%clk 0:00:20.5]} 43... Be4+ {[%clk 0:00:10.4]} 44. Kb2 {[%clk 0:00:19.8]}
44... Qe2+ {[%clk 0:00:07.5]} 45. Ka3 {[%clk 0:00:19]} 45... Qg2 {[%clk
0:00:05]} 46. Qf8+ {[%clk 0:00:18.3]} 46... Kh7 {[%clk 0:00:04.3]} 47. Qf7+
{[%clk 0:00:18.6]} 47... Kh8 {[%clk 0:00:04.2]} 48. Qf6+ {[%clk 0:00:19.1]}
48... Kh7 {[%clk 0:00:03.8]} 49. Qe7+ {[%clk 0:00:18.7]} 49... Kg8 {[%clk
0:00:03.2]} 50. Kb4 {[%clk 0:00:16.9]} 50... Qb2+ {[%clk 0:00:02.2]} 51. Kc5
{[%clk 0:00:15.7]} 51... Qa3+ {[%clk 0:00:02.3]} 0-1

[Event "*** SCC Grand Prix: Titled Tuesday Blitz"]
[Site "Chess.com"]
[Date "2020.10.06"]
[Round "7"]
[White "FloMaster111"]
[Black "Rital44"]
[Result "0-1"]
[WhiteElo "2554"]
[BlackElo "2443"]
[TimeControl "180+1"]
[EndTime "11:20:20 PDT"]
[Termination "Rital44 won on time"]

1. Nf3 {[%clk 0:02:59.2]} 1... Nf6 {[%clk 0:02:52.7]} 2. d4 {[%clk 0:02:58.8]}
2... g6 {[%clk 0:02:51]} 3. Nc3 {[%clk 0:02:58.8]} 3... d5 {[%clk 0:02:50.9]} 4.
Bf4 {[%clk 0:02:58.1]} 4... Bg7 {[%clk 0:02:50.7]} 5. Nb5 {[%clk 0:02:58.4]}
5... Na6 {[%clk 0:02:50.4]} 6. e3 {[%clk 0:02:58.3]} 6... O-O {[%clk 0:02:50.2]}
7. h3 {[%clk 0:02:58.9]} 7... c5 {[%clk 0:02:48.1]} 8. c3 {[%clk 0:02:51.5]}
8... Ne4 {[%clk 0:02:45.8]} 9. Be2 {[%clk 0:02:45.2]} 9... Bd7 {[%clk
0:02:32.4]} 10. a4 {[%clk 0:02:43.5]} 10... Qb6 {[%clk 0:02:28.7]} 11. O-O
{[%clk 0:02:35.1]} 11... c4 {[%clk 0:02:27.9]} 12. b3 {[%clk 0:02:35.3]} 12...
Bxb5 {[%clk 0:02:25.4]} 13. axb5 {[%clk 0:02:31.8]} 13... Nxc3 {[%clk
0:02:25.6]} 14. Qc2 {[%clk 0:02:25.9]} 14... Nxe2+ {[%clk 0:02:25.4]} 15. Qxe2
{[%clk 0:02:26.8]} 15... Qxb5 {[%clk 0:02:25.8]} 16. bxc4 {[%clk 0:02:25.9]}
16... Qxc4 {[%clk 0:02:26.1]} 17. Qb2 {[%clk 0:02:22.4]} 17... Qb4 {[%clk
0:02:16.9]} 18. Qa2 {[%clk 0:02:21.1]} 18... Qc4 {[%clk 0:02:09.5]} 19. Qa5
{[%clk 0:02:16.6]} 19... Rfc8 {[%clk 0:02:05.5]} 20. Rfb1 {[%clk 0:02:15.9]}
20... Qc6 {[%clk 0:01:43.3]} 21. Rb5 {[%clk 0:02:07.3]} 21... e6 {[%clk
0:01:28.6]} 22. Rab1 {[%clk 0:02:06.2]} 22... Nb8 {[%clk 0:01:21.8]} 23. Rxb7
{[%clk 0:02:04.7]} 23... Nd7 {[%clk 0:01:21.7]} 24. Rxa7 {[%clk 0:01:28]} 24...
Rxa7 {[%clk 0:01:22.6]} 25. Qxa7 {[%clk 0:01:28.9]} 25... Ra8 {[%clk 0:01:19.2]}
26. Qc7 {[%clk 0:01:28.2]} 26... Qxc7 {[%clk 0:01:16.7]} 27. Bxc7 {[%clk
0:01:29.1]} 27... Nf6 {[%clk 0:01:16.5]} 28. Be5 {[%clk 0:01:00.2]} 28... Ne4
{[%clk 0:01:15.6]} 29. Rb2 {[%clk 0:00:53.3]} 29... f6 {[%clk 0:01:13.6]} 30.
Bc7 {[%clk 0:00:46.2]} 30... Bf8 {[%clk 0:01:12.8]} 31. g3 {[%clk 0:00:39.3]}
31... Ra7 {[%clk 0:01:05.1]} 32. Bb8 {[%clk 0:00:33.9]} 32... Ra1+ {[%clk
0:00:58.2]} 33. Kg2 {[%clk 0:00:33.9]} 33... Ba3 {[%clk 0:00:57.1]} 34. Rc2
{[%clk 0:00:31.3]} 34... Rb1 {[%clk 0:00:50.6]} 35. Bc7 {[%clk 0:00:25.7]} 35...
Kf7 {[%clk 0:00:43.9]} 36. g4 {[%clk 0:00:19.3]} 36... g5 {[%clk 0:00:39.7]} 37.
Bh2 {[%clk 0:00:18.3]} 37... Rb7 {[%clk 0:00:36.2]} 38. Ra2 {[%clk 0:00:17.4]}
38... Be7 {[%clk 0:00:33]} 39. Nd2 {[%clk 0:00:14]} 39... Nc3 {[%clk 0:00:29.8]}
40. Rc2 {[%clk 0:00:13.5]} 40... Nb5 {[%clk 0:00:25.9]} 41. Nf1 {[%clk
0:00:12.9]} 41... Bd6 {[%clk 0:00:24]} 42. Bg3 {[%clk 0:00:11]} 42... Bxg3
{[%clk 0:00:23.3]} 43. Nxg3 {[%clk 0:00:11.9]} 43... Rc7 {[%clk 0:00:22.3]} 44.
Rb2 {[%clk 0:00:11.8]} 44... Nd6 {[%clk 0:00:22.1]} 45. Rb6 {[%clk 0:00:10.2]}
45... Ne4 {[%clk 0:00:21.9]} 46. Nxe4 {[%clk 0:00:08.5]} 46... dxe4 {[%clk
0:00:22.8]} 47. Kg3 {[%clk 0:00:08.2]} 47... Rc1 {[%clk 0:00:20.3]} 48. Rb7+
{[%clk 0:00:08.3]} 48... Kg6 {[%clk 0:00:20.3]} 49. Re7 {[%clk 0:00:07.8]} 49...
h5 {[%clk 0:00:19.1]} 50. gxh5+ {[%clk 0:00:07]} 50... Kxh5 {[%clk 0:00:20]} 51.
Rxe6 {[%clk 0:00:07.2]} 51... f5 {[%clk 0:00:20.4]} 52. Rf6 {[%clk 0:00:04.8]}
52... f4+ {[%clk 0:00:15.3]} 53. exf4 {[%clk 0:00:05.7]} 53... Rc3+ {[%clk
0:00:16.1]} 54. Kg2 {[%clk 0:00:05.2]} 54... Rc2 {[%clk 0:00:15.7]} 0-1

[Event "*** SCC Grand Prix: Titled Tuesday Blitz"]
[Site "Chess.com"]
[Date "2020.10.06"]
[Round "7"]
[White "davidkalashian"]
[Black "Harsha_Bharathakoti"]
[Result "0-1"]
[WhiteElo "2579"]
[BlackElo "2752"]
[TimeControl "180+1"]
[EndTime "11:20:24 PDT"]
[Termination "Harsha_Bharathakoti won on time"]

1. d4 {[%clk 0:03:00.9]} 1... d5 {[%clk 0:03:00]} 2. Nf3 {[%clk 0:03:00.6]} 2...
Nf6 {[%clk 0:03:00.1]} 3. c4 {[%clk 0:03:01.2]} 3... e6 {[%clk 0:03:00.4]} 4.
Nc3 {[%clk 0:03:00.9]} 4... c6 {[%clk 0:03:00.8]} 5. Qd3 {[%clk 0:03:00]} 5...
dxc4 {[%clk 0:02:59.1]} 6. Qxc4 {[%clk 0:03:00.9]} 6... b5 {[%clk 0:02:59.8]} 7.
Qb3 {[%clk 0:03:00.4]} 7... Nbd7 {[%clk 0:02:55.9]} 8. g3 {[%clk 0:02:59]} 8...
Bb7 {[%clk 0:02:52.9]} 9. Bg2 {[%clk 0:02:58.9]} 9... b4 {[%clk 0:02:46.7]} 10.
Na4 {[%clk 0:02:57.7]} 10... c5 {[%clk 0:02:47.1]} 11. dxc5 {[%clk 0:02:55]}
11... Nxc5 {[%clk 0:02:47.2]} 12. Nxc5 {[%clk 0:02:54.1]} 12... Bxc5 {[%clk
0:02:48.1]} 13. O-O {[%clk 0:02:32.4]} 13... O-O {[%clk 0:02:47.3]} 14. Be3
{[%clk 0:02:26.7]} 14... Bd5 {[%clk 0:02:13.8]} 15. Qd3 {[%clk 0:02:26.2]} 15...
Bxe3 {[%clk 0:02:04.7]} 16. Qxe3 {[%clk 0:02:27.1]} 16... Qe7 {[%clk 0:00:50.4]}
17. a3 {[%clk 0:02:21.3]} 17... a5 {[%clk 0:00:48.1]} 18. Rfc1 {[%clk
0:02:13.5]} 18... Rfb8 {[%clk 0:00:45]} 19. Ne5 {[%clk 0:02:07.3]} 19... Bxg2
{[%clk 0:00:29.5]} 20. Kxg2 {[%clk 0:02:08.2]} 20... Qb7+ {[%clk 0:00:22.6]} 21.
Kg1 {[%clk 0:02:03.4]} 21... Nd5 {[%clk 0:00:20.8]} 22. Qf3 {[%clk 0:02:01.9]}
22... f6 {[%clk 0:00:18.1]} 23. Nc6 {[%clk 0:01:58.9]} 23... Rc8 {[%clk
0:00:18.2]} 24. Nd4 {[%clk 0:01:58.3]} 24... Qd7 {[%clk 0:00:15.4]} 25. e3
{[%clk 0:01:51.1]} 25... bxa3 {[%clk 0:00:11.3]} 26. bxa3 {[%clk 0:01:50.4]}
26... Ne7 {[%clk 0:00:07.8]} 27. Rab1 {[%clk 0:01:47.9]} 27... e5 {[%clk
0:00:06.3]} 28. Rxc8+ {[%clk 0:01:40.7]} 28... Rxc8 {[%clk 0:00:07.2]} 29. Rb7
{[%clk 0:01:36.7]} 29... Rc1+ {[%clk 0:00:07.1]} 30. Kg2 {[%clk 0:01:36.1]}
30... Rc7 {[%clk 0:00:08]} 31. Rxc7 {[%clk 0:01:08]} 31... Qxc7 {[%clk
0:00:08.9]} 32. Nb5 {[%clk 0:00:54.2]} 32... Qb6 {[%clk 0:00:08.9]} 33. a4
{[%clk 0:00:50.6]} 33... Kf7 {[%clk 0:00:08.8]} 34. Qh5+ {[%clk 0:00:49.7]}
34... Ng6 {[%clk 0:00:07.6]} 35. Qd1 {[%clk 0:00:44.1]} 35... Qc6+ {[%clk
0:00:07.6]} 36. Kg1 {[%clk 0:00:44]} 36... Ne7 {[%clk 0:00:08.2]} 37. Qb3+
{[%clk 0:00:40.9]} 37... Kf8 {[%clk 0:00:04.8]} 38. Qd3 {[%clk 0:00:34.5]} 38...
Qc1+ {[%clk 0:00:04.1]} 39. Kg2 {[%clk 0:00:34.2]} 39... Qc6+ {[%clk 0:00:05]}
40. e4 {[%clk 0:00:30.2]} 40... Kf7 {[%clk 0:00:04.1]} 41. f3 {[%clk 0:00:13.4]}
41... Kg6 {[%clk 0:00:04.3]} 42. h4 {[%clk 0:00:12.9]} 42... h5 {[%clk
0:00:04.4]} 43. Qb3 {[%clk 0:00:10.4]} 43... Kh7 {[%clk 0:00:03]} 44. Qf7 {[%clk
0:00:09.5]} 44... Ng6 {[%clk 0:00:03.2]} 45. Qb3 {[%clk 0:00:05.2]} 45... Qc5
{[%clk 0:00:03.5]} 46. Qb2 {[%clk 0:00:03.4]} 46... Qc4 {[%clk 0:00:03]} 47. Nc3
{[%clk 0:00:01.1]} 47... Qd4 {[%clk 0:00:02.8]} 48. Qc2 {[%clk 0:00:01.3]} 48...
Qc4 {[%clk 0:00:03.1]} 49. Qd2 {[%clk 0:00:01.4]} 49... Ne7 {[%clk 0:00:03.5]}
50. Nd5 {[%clk 0:00:01.4]} 50... Nc6 {[%clk 0:00:03.7]} 51. Ne3 {[%clk
0:00:01.1]} 51... Qxa4 {[%clk 0:00:03.7]} 0-1

[Event "*** SCC Grand Prix: Titled Tuesday Blitz"]
[Site "Chess.com"]
[Date "2020.10.06"]
[Round "7"]
[White "Ze-Pequeno"]
[Black "juli2512"]
[Result "1/2-1/2"]
[WhiteElo "2246"]
[BlackElo "2051"]
[TimeControl "180+1"]
[EndTime "11:20:26 PDT"]
[Termination "Game drawn by repetition"]

1. e4 {[%clk 0:03:00.9]} 1... c5 {[%clk 0:02:56.6]} 2. Nf3 {[%clk 0:03:00.5]}
2... d6 {[%clk 0:02:55.3]} 3. d4 {[%clk 0:03:00.5]} 3... cxd4 {[%clk 0:02:55.6]}
4. Nxd4 {[%clk 0:03:01.4]} 4... Nf6 {[%clk 0:02:55.7]} 5. Nc3 {[%clk 0:03:01.2]}
5... Nc6 {[%clk 0:02:56.2]} 6. Bg5 {[%clk 0:02:59.8]} 6... e6 {[%clk 0:02:55.5]}
7. Qd2 {[%clk 0:02:59.5]} 7... Be7 {[%clk 0:02:55.1]} 8. O-O-O {[%clk 0:02:59]}
8... O-O {[%clk 0:02:54.7]} 9. Nb3 {[%clk 0:02:58.5]} 9... a6 {[%clk 0:02:51.9]}
10. f3 {[%clk 0:02:50.1]} 10... Qc7 {[%clk 0:02:31.9]} 11. h4 {[%clk 0:02:40.5]}
11... Rd8 {[%clk 0:02:26]} 12. Qf2 {[%clk 0:02:37.6]} 12... b5 {[%clk
0:02:20.7]} 13. Be3 {[%clk 0:02:36.1]} 13... Rb8 {[%clk 0:02:20.4]} 14. Kb1
{[%clk 0:02:31.3]} 14... b4 {[%clk 0:02:08.9]} 15. Na4 {[%clk 0:02:27.7]} 15...
Nd7 {[%clk 0:01:58.5]} 16. g4 {[%clk 0:02:22.2]} 16... Nce5 {[%clk 0:01:47.2]}
17. g5 {[%clk 0:02:11.8]} 17... Nc4 {[%clk 0:01:45.8]} 18. Bc1 {[%clk
0:02:03.9]} 18... Ndb6 {[%clk 0:01:24.3]} 19. Nxb6 {[%clk 0:02:01.9]} 19... Qxb6
{[%clk 0:01:16.2]} 20. Qg3 {[%clk 0:01:43.4]} 20... Ne3 {[%clk 0:01:06.6]} 21.
Re1 {[%clk 0:01:03.9]} 21... Nxf1 {[%clk 0:01:01.3]} 22. Rexf1 {[%clk
0:01:04.3]} 22... a5 {[%clk 0:00:43.9]} 23. h5 {[%clk 0:00:58.6]} 23... a4
{[%clk 0:00:43.5]} 24. Nd2 {[%clk 0:00:59.1]} 24... Qc5 {[%clk 0:00:38.2]} 25.
g6 {[%clk 0:00:56.2]} 25... fxg6 {[%clk 0:00:25]} 26. hxg6 {[%clk 0:00:55.5]}
26... h6 {[%clk 0:00:24.4]} 27. f4 {[%clk 0:00:55.6]} 27... Ba6 {[%clk
0:00:18.8]} 28. Re1 {[%clk 0:00:40.9]} 28... Rdc8 {[%clk 0:00:18.7]} 29. Qg4
{[%clk 0:00:34.2]} 29... Qxc2+ {[%clk 0:00:17.5]} 30. Ka1 {[%clk 0:00:35.1]}
30... Bc4 {[%clk 0:00:15.4]} 31. Nxc4 {[%clk 0:00:32.8]} 31... Qxc4 {[%clk
0:00:14.8]} 32. f5 {[%clk 0:00:32]} 32... Bf6 {[%clk 0:00:13.4]} 33. e5 {[%clk
0:00:22.9]} 33... dxe5 {[%clk 0:00:12.4]} 34. fxe6 {[%clk 0:00:21.1]} 34... e4
{[%clk 0:00:12.4]} 35. Qxe4 {[%clk 0:00:18.4]} 35... Qxe4 {[%clk 0:00:11.7]} 36.
Rxe4 {[%clk 0:00:18.9]} 36... a3 {[%clk 0:00:12.2]} 37. Kb1 {[%clk 0:00:19.4]}
37... b3 {[%clk 0:00:09.9]} 38. Rh2 {[%clk 0:00:15]} 38... bxa2+ {[%clk
0:00:09.2]} 39. Kxa2 {[%clk 0:00:15]} 39... axb2 {[%clk 0:00:09.1]} 40. Bxb2
{[%clk 0:00:15.9]} 40... Ra8+ {[%clk 0:00:08.8]} 41. Kb1 {[%clk 0:00:15.8]}
41... Rab8 {[%clk 0:00:08.9]} 42. e7 {[%clk 0:00:14.9]} 42... Re8 {[%clk
0:00:08.4]} 43. Rhe2 {[%clk 0:00:14.2]} 43... Rxb2+ {[%clk 0:00:07.1]} 44. Rxb2
{[%clk 0:00:14.2]} 44... Bxb2 {[%clk 0:00:07.4]} 45. Kxb2 {[%clk 0:00:14.2]}
45... h5 {[%clk 0:00:07.7]} 46. Kc3 {[%clk 0:00:14.2]} 46... h4 {[%clk
0:00:07.9]} 47. Kd4 {[%clk 0:00:12.5]} 47... h3 {[%clk 0:00:08.1]} 48. Re1
{[%clk 0:00:09.5]} 48... h2 {[%clk 0:00:08]} 49. Rh1 {[%clk 0:00:08.9]} 49...
Rxe7 {[%clk 0:00:07.8]} 50. Rxh2 {[%clk 0:00:09.3]} 50... Re6 {[%clk 0:00:08.2]}
51. Rg2 {[%clk 0:00:09.4]} 51... Kf8 {[%clk 0:00:07.7]} 52. Kd5 {[%clk
0:00:09.5]} 52... Rf6 {[%clk 0:00:07.9]} 53. Ke5 {[%clk 0:00:09.5]} 53... Ke7
{[%clk 0:00:07.9]} 54. Rg4 {[%clk 0:00:09.3]} 54... Kd7 {[%clk 0:00:06.2]} 55.
Kd5 {[%clk 0:00:08.1]} 55... Ke7 {[%clk 0:00:06.4]} 56. Ke5 {[%clk 0:00:08.3]}
56... Kd7 {[%clk 0:00:06.4]} 57. Kd5 {[%clk 0:00:08.6]} 57... Ke7 {[%clk
0:00:06.6]} 58. Ke5 {[%clk 0:00:08.8]} 1/2-1/2